{"text_format":"1","workbook":"xlsx","n_sheets":3,"sheets":["Sheet1","Sheet2","Sheet3"],"not_rendered":{"charts":0,"images":0,"macros":1,"external_links":0,"defined_names":0,"comments":0,"pivot_tables":0},"unopened":[],"bounds":{"document_bytes":16777216,"sheet_cells":100000,"rows_first":2000,"rows_last":500,"rows_between":2000,"halvings":0,"cell_chars":16384,"cell_head_chars":4096},"cells_cut":0,"cells_raw":0,"read":"whole","date_system":"1900"}

{"sheet":"Sheet1","index":0,"n_rows":23,"n_cols":10,"rows_kept":23,"cut":false,"hidden":false,"merged":[]}
[]
[null,"項目","判定値","=CELL(\"format\", B3)","=ISNUMBER","=ISTEXT","=VBAのIsDate","=ISREF","=ISLOGICAL","=VBAでNumberFormat"]
[null,"数値",999999,{"$f":"CELL(\"format\", C3)","v":"G"},{"$f":"ISNUMBER(C3)","v":true},{"$f":"ISTEXT(C3)","v":false},{"$f":"CheckDate(C3)","v":false},{"$f":"ISREF(C3)","v":true},{"$f":"ISLOGICAL(C3)","v":false},{"$f":"GetNumberFormat(C3)","v":"General"}]
[null,"数値（指数）",9.9999999999999898E+18,{"$f":"CELL(\"format\", C4)","v":"G"},{"$f":"ISNUMBER(C4)","v":true},{"$f":"ISTEXT(C4)","v":false},{"$f":"CheckDate(C4)","v":false},{"$f":"ISREF(C4)","v":true},{"$f":"ISLOGICAL(C4)","v":false},"General"]
[null,"数値（小数点含む）",9999.9999000000007,"G",true,false,{"$f":"CheckDate(C5)","v":false},true,false,"General"]
[null,"数値（％）",0.5,{"$f":"CELL(\"format\", C6)","v":"P0"},{"$f":"ISNUMBER(C6)","v":true},{"$f":"ISTEXT(C6)","v":false},{"$f":"CheckDate(C6)","v":false},true,false,"0%"]
[null,"数値（分数）",0.5,{"$f":"CELL(\"format\", C7)","v":"G"},true,false,false,true,false,"# ?/?"]
[null,"文字列","STRING(あ)","G",false,true,false,true,false,"General"]
[null,"文字列","STRING(ア)","G",false,true,false,true,false,"General"]
[null,"文字列","STRING(ｱ)","G",false,true,false,true,false,"General"]
[null,"文字列","STRING(Ａ)","G",false,true,false,true,false,"General"]
[null,"文字列","STRING(０)","G",false,true,false,true,false,"General"]
[null,"文字列","STRING(A)","G",false,true,false,true,false,"General"]
[null,"文字列","STRING(0)","G",false,true,false,true,false,"General"]
[null,"文字列（数値）","10","G",{"$f":"ISNUMBER(C15)","v":false},{"$f":"ISTEXT(C15)","v":true},{"$f":"CheckDate(C15)","v":false},true,false,"@"]
[null,"文字列（数値）","99.5","G",{"$f":"ISNUMBER(C16)","v":false},{"$f":"ISTEXT(C16)","v":true},{"$f":"CheckDate(C16)","v":false},true,false,"@"]
[null,"文字列（日付）","2015/4/1","G",{"$f":"ISNUMBER(C17)","v":false},{"$f":"ISTEXT(C17)","v":true},{"$f":"CheckDate(C17)","v":true},true,false,"@"]
[null,"文字列（日付）","4/1","G",{"$f":"ISNUMBER(C18)","v":false},{"$f":"ISTEXT(C18)","v":true},{"$f":"CheckDate(C18)","v":true},true,false,"@"]
[null,"日付","2015-08-01",{"$f":"CELL(\"format\", C19)","v":"D3"},true,false,true,true,false,"m\"月\"d\"日\""]
[null,"日付＋時刻","2015-08-01T01:01:01",{"$f":"CELL(\"format\", C20)","v":"D1"},true,false,true,true,false,"m/d/yyyy h:mm"]
[null,"時刻","01:01:01",{"$f":"CELL(\"format\", C21)","v":"D8"},true,false,false,true,false,"h:mm:ss"]
[null,"時刻 AM/PM","01:01:01",{"$f":"CELL(\"format\", C22)","v":"D6"},true,false,false,true,false,"h:mm:ss AM/PM"]
[null,"論理値",true,{"$f":"CELL(\"format\", C23)","v":"G"},{"$f":"ISNUMBER(C23)","v":false},{"$f":"ISTEXT(C23)","v":false},{"$f":"CheckDate(C23)","v":false},{"$f":"ISREF(C23)","v":true},true,"General"]

{"sheet":"Sheet2","index":1,"n_rows":0,"n_cols":0,"rows_kept":0,"cut":false,"hidden":false,"merged":[]}

{"sheet":"Sheet3","index":2,"n_rows":0,"n_cols":0,"rows_kept":0,"cut":false,"hidden":false,"merged":[]}